fUSD/lending_fUSD_20260428
["ID","MTS","AMOUNT","RATE_DAILY","PERIOD"]
[421295811,1777384231883,-500.0,8.836e-05,2]
[421295813,1777384231892,-500.0,8.836e-05,2]
[421295815,1777384231901,-500.0,8.836e-05,2]
[421295817,1777384231910,-500.0,8.836e-05,2]
[421295819,1777384231920,-500.0,8.836e-05,2]
[421295821,1777384231929,-500.0,8.836e-05,2]
[421295823,1777384231938,-500.0,8.836e-05,2]
[421295825,1777384231947,-500.0,8.836e-05,2]
[421295827,1777384231956,-500.0,8.836e-05,2]
[421295829,1777384231966,-500.0,8.836e-05,2]
[421295831,1777384231976,-500.0,8.836e-05,2]
[421295834,1777384231985,-500.0,8.836e-05,2]
[421295836,1777384231994,-500.0,8.836e-05,2]
[421295838,1777384232004,-500.0,8.836e-05,2]
[421295840,1777384232014,-500.0,8.836e-05,2]
[421295843,1777384232023,-500.0,8.836e-05,2]
[421295844,1777384232032,-500.0,8.836e-05,2]
[421295846,1777384232041,-500.0,8.836e-05,2]
[421295848,1777384232050,-232.29261239,8.836e-05,2]
[421295851,1777384232062,-267.70738761,8.836e-05,2]
[421295853,1777384232071,-500.0,8.836e-05,2]
[421295855,1777384232081,-253.18047486,8.836e-05,2]
[421295857,1777384232090,-233.5302243,8.836e-05,2]
[421295873,1777384232229,-266.4697757,8.836e-05,2]
[421295875,1777384232238,-500.0,8.836e-05,2]
[421295877,1777384232247,-500.0,8.836e-05,2]
[421295879,1777384232256,-500.0,8.836e-05,2]
[421295881,1777384232266,-481.16782684,8.836e-05,2]
[421295883,1777384232277,-18.83217316,8.836e-05,2]
[421295885,1777384232286,-500.0,8.836e-05,2]
[421295887,1777384232295,-500.0,8.836e-05,2]
[421295889,1777384232304,-500.0,8.836e-05,2]
[421295891,1777384232313,-500.0,8.836e-05,2]
[421295893,1777384232323,-500.0,8.836e-05,2]
[421295895,1777384232332,-475.31804749,8.836e-05,2]
[421295897,1777384232341,-500.0,8.836e-05,2]
[421295899,1777384232350,-500.0,8.836e-05,2]
[421295901,1777384232359,-7993.5035211,8.837e-05,2]
[421295902,1777384232368,-3170.95669687,8.837e-05,2]
[421295905,1777384232384,-2012.78354579,8.837e-05,2]
[421295907,1777384232395,-7604.2,8.837e-05,2]
[421295910,1777384232406,-744.2072,8.837e-05,2]
[421295913,1777384232424,-38143.03581834,8.642e-05,2]
[421295915,1777384232438,-337579.34814653,8.642e-05,2]
[421295917,1777384232449,-6485.69253513,8.642e-05,2]
[421295919,1777384232459,-179289.07743684,8.837e-05,2]
[421295921,1777384232468,-7833.4035237,8.837e-05,2]
[421295923,1777384232477,-4180.1547654,8.837e-05,2]
[421295925,1777384232486,-151.0,8.839e-05,2]
[421295927,1777384232495,-151.0,8.839e-05,2]
[421295929,1777384232504,-555.7485518,8.84e-05,2]
[421295931,1777384232514,-250.0,8.841e-05,2]
[421295933,1777384232523,-1101.58,8.841e-05,2]
[421295936,1777384232533,-1760.39097854,8.842e-05,2]
[421295938,1777384232542,-1869.14170773,8.842e-05,2]
[421295940,1777384232550,-185.786719,8.842e-05,2]
[421295942,1777384232559,-151.0,8.842e-05,2]
[421295944,1777384232568,-185.786719,8.842e-05,2]
[421295946,1777384232577,-151.0,8.842e-05,2]
[421295947,1777384232587,-185.786719,8.842e-05,2]
[421295950,1777384232597,-151.0,8.842e-05,2]
[421295952,1777384232606,-151.0,8.842e-05,2]
[421295954,1777384232615,-185.786719,8.842e-05,2]
[421295956,1777384232624,-151.0,8.842e-05,2]
[421295958,1777384232633,-198.399406,8.842e-05,2]
[421295960,1777384232642,-198.399406,8.842e-05,2]
[421295962,1777384232651,-198.399406,8.842e-05,2]
[421295964,1777384232661,-198.399406,8.842e-05,2]
[421295966,1777384232670,-723.807713,8.842e-05,2]
[421295968,1777384232679,-723.807713,8.842e-05,2]
[421295970,1777384232688,-723.807713,8.842e-05,2]
[421295972,1777384232697,-723.807713,8.842e-05,2]
[421295974,1777384232707,-1327.769509,8.842e-05,2]
[421295976,1777384232715,-1327.769509,8.842e-05,2]
[421295978,1777384232726,-500.0,8.842e-05,2]
[421295980,1777384232736,-1327.769509,8.842e-05,2]
[421295982,1777384232745,-1327.769509,8.842e-05,2]
[421295984,1777384232754,-150.99,8.864e-05,2]
[421295986,1777384232763,-3005.86,8.864e-05,2]
[421295988,1777384232772,-999.99,8.864e-05,2]
[421295990,1777384232780,-9999.99,8.864e-05,2]
[421295992,1777384232789,-14411.5,8.864e-05,2]
[421295994,1777384232798,-3214.74,8.864e-05,2]
[421295996,1777384232807,-6434.43,8.864e-05,2]
[421295997,1777384232816,-4507.4,8.864e-05,2]
[421295998,1777384232826,-1624.38,8.864e-05,2]
[421295999,1777384232835,-9999.99,8.864e-05,2]
[421296000,1777384232844,-3203.48,8.864e-05,2]
[421296001,1777384232854,-9999.99,8.864e-05,2]
[421296002,1777384232863,-560.0,8.865e-05,2]
[421296003,1777384232872,-1874.0,8.87e-05,2]
[421296004,1777384232882,-1006.04721534,8.998e-05,2]
[421296005,1777384232891,-973.60681919,9.041e-05,2]
[421296006,1777384232900,-300.0,9.041e-05,2]
[421296007,1777384232908,-5000.0,9.041e-05,2]
[421296008,1777384232918,-300.0,9.041e-05,2]
[421296009,1777384232928,-500.0,9.041e-05,2]
[421296010,1777384232937,-250.0,9.041e-05,2]
[421296011,1777384232946,-300.0,9.041e-05,2]
[421296012,1777384232956,-453.07062273,9.041e-05,2]
[421296013,1777384232965,-252.68510622,9.041e-05,2]
[421296014,1777384232974,-300.0,9.041e-05,2]
[421296015,1777384232983,-5000.0,9.041e-05,2]
[421296016,1777384232992,-300.0,9.041e-05,2]
[421296017,1777384233002,-1000.0,9.041e-05,2]
[421296018,1777384233011,-913.63281907,9.041e-05,2]
[421296019,1777384233020,-578.20924308,9.042e-05,2]
[421296020,1777384233030,-9552.16786547,9.042e-05,2]
[421296021,1777384233039,-200.0,9.042e-05,2]
[421296022,1777384233048,-721.12765535,9.042e-05,2]
[421296023,1777384233057,-743.50770149,9.042e-05,2]
[421296024,1777384233066,-1428.38747117,9.042e-05,2]
[421296025,1777384233075,-151.0,9.042e-05,2]
[421296026,1777384233085,-151.0,9.042e-05,2]
[421296027,1777384233094,-152.0,9.042e-05,2]
[421296028,1777384233104,-152.0,9.042e-05,2]
[421296029,1777384233112,-715.59437691,9.042e-05,2]
[421296030,1777384233122,-152.85998052,9.042e-05,2]
[421296031,1777384233131,-151.0,9.042e-05,2]
[421296032,1777384233140,-1000.0,9.042e-05,2]
[421296033,1777384233149,-1000.0,9.042e-05,2]
[421296034,1777384233159,-174.61919141,9.042e-05,2]
[421296035,1777384233169,-1000.0,9.042e-05,2]
[421296036,1777384233178,-279.9045709,9.042e-05,2]
[421296037,1777384233188,-1000.0,9.042e-05,2]
[421296038,1777384233198,-1000.0,9.042e-05,2]
[421296039,1777384233208,-1000.0,9.042e-05,2]
[421296040,1777384233217,-1000.0,9.042e-05,2]
[421296041,1777384233227,-1000.0,9.042e-05,2]
[421296042,1777384233235,-1000.0,9.042e-05,2]
[421296043,1777384233244,-235.75327194,9.042e-05,2]
[421296044,1777384233254,-1000.0,9.042e-05,2]
[421296045,1777384233263,-244.476143,9.042e-05,2]
[421296046,1777384233272,-253.52176029,9.042e-05,2]
[421296047,1777384233281,-262.90206542,9.042e-05,2]
[421296048,1777384233290,-272.62944185,9.042e-05,2]
[421296049,1777384233299,-374.75678176,9.042e-05,2]
[421296050,1777384233309,-209.40437684,9.042e-05,2]
[421296051,1777384233317,-549.13,9.094e-05,2]
[421296052,1777384233327,-5000.90308633,9.097e-05,2]
[421296053,1777384233336,-151.0,9.097e-05,2]
[421296054,1777384233345,-1101.58,9.115e-05,2]
[421296055,1777384233354,-1370.75854658,9.142e-05,5]
[421296056,1777384233367,-942.24145342,9.142e-05,5]
[421296057,1777384233376,-151.0,9.152e-05,2]
[421296058,1777384233385,-3132.62,9.205e-05,2]
[421296059,1777384233394,-151.0,9.207e-05,2]
[421296060,1777384233403,-151.0,9.216e-05,2]
[421296061,1777384233412,-151.0,9.216e-05,2]
[421296062,1777384233421,-1157.22138105,9.218e-05,3]
[421296063,1777384233430,-154.8402507,9.219e-05,2]
[421296064,1777384233440,-26295.33866332,9.219e-05,2]
[421296068,1777384239710,-1168.68615482,9.219e-05,2]
[421296069,1777384240134,-400.0,9.219e-05,2]
[421296070,1777384240241,-780.7058887,9.219e-05,2]
[421296088,1777384242883,-41339.31896617,9.219e-05,2]
[421296094,1777384245757,-907.67809395,9.219e-05,2]
[421296122,1777385238965,2400.0,9e-05,3]
[421296123,1777385394714,2245.0,0.0001,10]
[421296129,1777385431659,-257.0,8.219e-05,2]
[421296130,1777385431670,-250.0,8.219e-05,2]
[421296131,1777385431680,-341.3587242,8.219e-05,2]
[421296132,1777385431690,-280.0,8.219e-05,2]
[421296133,1777385431700,-250.0,8.232e-05,2]
[421296134,1777385431709,-845.37952731,8.369e-05,2]
[421296135,1777385431722,-354.62047269,8.369e-05,2]
[421296136,1777385431732,-300.0,8.37e-05,2]
[421296137,1777385431741,-769.0,8.37e-05,2]
[421296138,1777385431750,-300.0,8.37e-05,2]
[421296139,1777385431760,-224.57524947,8.37e-05,2]
[421296140,1777385431769,-3744.903,8.371e-05,2]
[421296141,1777385431779,-156.394,8.371e-05,2]
[421296142,1777385431788,-150.0,8.54e-05,2]
[421296143,1777385431798,-500.0,8.541e-05,2]
[421296144,1777385431807,-500.0,8.541e-05,2]
[421296145,1777385431817,-500.0,8.541e-05,2]
[421296146,1777385431826,-500.0,8.541e-05,2]
[421296147,1777385431836,-500.0,8.541e-05,2]
[421296148,1777385431846,-397.53180475,8.541e-05,2]
[421296149,1777385431855,-321.9479783,8.541e-05,2]
[421296150,1777385431865,-500.0,8.541e-05,2]
[421296151,1777385431874,-500.0,8.541e-05,2]
[421296152,1777385431884,-558.60994741,8.541e-05,2]
[421296153,1777385431894,-500.0,8.541e-05,2]
[421296154,1777385431903,-352.02666592,8.541e-05,2]
[421296155,1777385431912,-500.0,8.541e-05,2]
[421296156,1777385431922,-500.0,8.541e-05,2]
[421296157,1777385431932,-500.0,8.541e-05,2]
[421296158,1777385431942,-608.63786638,8.541e-05,2]
[421296159,1777385431952,-212.24373845,8.541e-05,2]
[421296160,1777385431961,-2900.59,8.541e-05,2]
[421296161,1777385431971,-9999.99,8.541e-05,2]
[421296162,1777385431980,-3055.94,8.541e-05,2]
[421296163,1777385431990,-299.99,8.541e-05,2]
[421296164,1777385432000,-207361.94485328,8.542e-05,2]
[421296165,1777385432012,-52599.51070516,8.542e-05,2]
[421296166,1777385432024,-168019.17004828,8.542e-05,2]
[421296167,1777385432035,-352.3625822,8.542e-05,2]
[421296168,1777385432055,-2104.67102666,8.542e-05,2]
[421296171,1777385437877,-1335.68020852,8.542e-05,2]
[421296172,1777385440017,-3624.86776443,8.542e-05,2]
[421296179,1777385440075,-8213.49785305,8.542e-05,2]
[421296185,1777385440447,-2511.34373122,8.542e-05,2]
[421296195,1777385443075,-1317.35234554,8.542e-05,2]
[421296215,1777385445908,-228.13,8.499e-05,2]
[421296216,1777385445918,-15938.58168422,8.542e-05,2]
[421296217,1777385445961,-4670.60698737,8.542e-05,2]
[421296218,1777385446068,-1885.825,8.542e-05,2]
[421296219,1777385446124,-253.41663215,8.542e-05,2]
[421296259,1777385466139,150.0,8.542e-05,3]
[421296260,1777385470795,2255.31215166,0.0001,15]
[421296263,1777386090098,152.0,8.942e-05,7]
[421296266,1777386449376,2300.0,8.9e-05,3]
[421296267,1777386451466,4700.0,9e-05,3]
[421296279,1777386632458,-257.0,8.219e-05,2]
[421296280,1777386632469,-250.0,8.219e-05,2]
[421296281,1777386632479,-279.9401,8.439e-05,2]
[421296282,1777386632489,-2755.65861921,8.529e-05,2]
[421296283,1777386632499,-224.57524946,8.537e-05,2]
[421296284,1777386632509,-300.0,8.538e-05,2]
[421296285,1777386632518,-300.0,8.538e-05,2]
[421296286,1777386632528,-300.0,8.538e-05,2]
[421296287,1777386632538,-1200.0,8.538e-05,2]
[421296288,1777386632548,-246.0,8.538e-05,2]
[421296289,1777386632558,-150.0,8.538e-05,2]
[421296290,1777386632568,-151.0,8.539e-05,2]
[421296291,1777386632577,-3478.5063965,8.539e-05,2]
[421296292,1777386632587,-65907.31963483,8.539e-05,2]
[421296293,1777386632600,-40301.09577747,8.539e-05,2]
[421296294,1777386632609,-2137.8707795,8.539e-05,2]
[421296295,1777386632619,-1140.8362532,8.539e-05,2]
[421296296,1777386632628,-780.7058889,8.539e-05,2]
[421296297,1777386632638,-54872.2501808,8.539e-05,2]
[421296298,1777386632647,-150.0,8.678e-05,2]
[421296299,1777386632657,-150.0,8.678e-05,2]
[421296300,1777386632666,-261.0066596,8.678e-05,2]
[421296301,1777386632676,-150.0,8.678e-05,2]
[421296302,1777386632686,-150.0,8.678e-05,2]
[421296303,1777386632695,-150.0,8.678e-05,2]
[421296304,1777386632705,-150.0,8.678e-05,2]
[421296305,1777386632715,-150.0,8.678e-05,2]
[421296307,1777386632724,-150.0,8.678e-05,2]
[421296309,1777386632734,-150.0,8.678e-05,2]
[421296311,1777386632743,-150.0,8.678e-05,2]
[421296313,1777386632753,-250.0,8.678e-05,2]
[421296315,1777386632763,-150.0,8.678e-05,2]
[421296317,1777386632772,-150.0,8.678e-05,2]
[421296319,1777386632781,-250.0,8.678e-05,2]
[421296321,1777386632790,-150.0,8.678e-05,2]
[421296323,1777386632800,-150.0,8.678e-05,2]
[421296325,1777386632810,-150.0,8.678e-05,2]
[421296327,1777386632819,-265.14027138,8.678e-05,2]
[421296329,1777386632829,-150.0,8.678e-05,2]
[421296331,1777386632838,-170.49964996,8.678e-05,2]
[421296333,1777386632847,-150.0,8.678e-05,2]
[421296335,1777386632856,-150.0,8.678e-05,2]
[421296337,1777386632866,-150.0,8.678e-05,2]
[421296339,1777386632875,-150.0,8.678e-05,2]
[421296341,1777386632884,-212.56047491,8.678e-05,2]
[421296343,1777386632894,-150.0,8.678e-05,2]
[421296345,1777386632903,-150.0,8.678e-05,2]
[421296347,1777386632913,-150.0,8.678e-05,2]
[421296349,1777386632922,-150.0,8.678e-05,2]
[421296351,1777386632930,-150.0,8.678e-05,2]
[421296353,1777386632940,-150.69588499,8.678e-05,2]
[421296355,1777386632949,-826.19,8.678e-05,2]
[421296357,1777386632959,-500.0,8.678e-05,2]
[421296359,1777386632968,-150.0,8.678e-05,2]
[421296361,1777386632978,-500.0,8.678e-05,2]
[421296363,1777386632988,-150.0,8.678e-05,2]
[421296365,1777386632998,-500.0,8.678e-05,2]
[421296367,1777386633007,-150.0,8.678e-05,2]
[421296369,1777386633017,-350.0,8.678e-05,2]
[421296371,1777386633026,-150.0,8.678e-05,2]
[421296373,1777386633035,-150.0,8.678e-05,2]
[421296375,1777386633044,-150.0,8.678e-05,2]
[421296376,1777386633054,-250.0,8.678e-05,2]
[421296377,1777386633063,-9999.99,8.678e-05,2]
[421296378,1777386633073,-500.0,8.678e-05,2]
[421296379,1777386633082,-500.0,8.678e-05,2]
[421296380,1777386633091,-200.0,8.7e-05,2]
[421296381,1777386633101,-150.99,8.7e-05,2]
[421296382,1777386633110,-9999.99,8.7e-05,2]
[421296383,1777386633119,-9999.99,8.7e-05,2]
[421296384,1777386633129,-578.20924308,8.828e-05,2]
[421296385,1777386633138,-151.0,8.828e-05,2]
[421296386,1777386633148,-209.40437684,8.828e-05,2]
[421296387,1777386633157,-743.50770149,8.828e-05,2]
[421296388,1777386633167,-200.0,8.828e-05,2]
[421296389,1777386633176,-1428.38747117,8.828e-05,2]
[421296390,1777386633186,-151.0,8.828e-05,2]
[421296391,1777386633195,-151.12206715,8.828e-05,2]
[421296392,1777386633204,-1000.0,8.828e-05,2]
[421296393,1777386633216,-944.40025281,8.828e-05,2]
[421296394,1777386633225,-279.9045709,8.828e-05,2]
[421296395,1777386633235,-174.61919141,8.828e-05,2]
[421296396,1777386633244,-209.40437684,8.828e-05,2]
[421296397,1777386633254,-173.0,8.833e-05,2]
[421296398,1777386633263,-700.0,8.834e-05,2]
[421296399,1777386633273,-2500.0,8.84e-05,2]
[421296400,1777386633283,-696.0,8.855e-05,2]
[421296401,1777386633292,-150.0,8.877e-05,2]
[421296402,1777386633301,-150.0,8.877e-05,2]
[421296403,1777386633311,-151.0,8.883e-05,2]
[421296404,1777386633320,-174.0,8.893e-05,2]
[421296405,1777386633329,-2961.0,8.9e-05,2]
[421296406,1777386633339,-2000.0,8.9e-05,2]
[421296407,1777386633348,-3938.0,8.9e-05,2]
[421296408,1777386633357,-319.0,8.908e-05,2]
[421296409,1777386633367,-789.0,8.933e-05,2]
[421296410,1777386633377,-151.0,8.938e-05,2]
[421296411,1777386633387,-500.0,8.939e-05,2]
[421296412,1777386633396,-450.29986165,8.939e-05,2]
[421296413,1777386633405,-500.0,8.939e-05,2]
[421296414,1777386633415,-500.0,8.939e-05,2]
[421296415,1777386633424,-500.0,8.939e-05,2]
[421296416,1777386633433,-500.0,8.939e-05,2]
[421296417,1777386633442,-500.0,8.939e-05,2]
[421296418,1777386633451,-500.0,8.939e-05,2]
[421296419,1777386633461,-500.0,8.939e-05,2]
[421296420,1777386633471,-500.0,8.939e-05,2]
[421296421,1777386633480,-500.0,8.939e-05,2]
[421296422,1777386633490,-192.18096419,8.939e-05,2]
[421296423,1777386633499,-500.0,8.939e-05,2]
[421296424,1777386633508,-500.0,8.939e-05,2]
[421296425,1777386633517,-500.0,8.939e-05,2]
[421296426,1777386633526,-500.0,8.939e-05,2]
[421296427,1777386633536,-500.0,8.939e-05,2]
[421296428,1777386633546,-500.0,8.939e-05,2]
[421296429,1777386633555,-500.0,8.939e-05,2]
[421296430,1777386633564,-500.0,8.939e-05,2]
[421296431,1777386633574,-500.0,8.939e-05,2]
[421296432,1777386633583,-500.0,8.939e-05,2]
[421296433,1777386633592,-500.0,8.939e-05,2]
[421296434,1777386633601,-500.0,8.939e-05,2]
[421296435,1777386633611,-500.0,8.939e-05,2]
[421296436,1777386633620,-500.0,8.939e-05,2]
[421296437,1777386633629,-500.0,8.939e-05,2]
[421296438,1777386633639,-500.0,8.939e-05,2]
[421296439,1777386633648,-500.0,8.939e-05,2]
[421296440,1777386633658,-500.0,8.939e-05,2]
[421296441,1777386633667,-500.0,8.939e-05,2]
[421296442,1777386633677,-500.0,8.939e-05,2]
[421296443,1777386633687,-500.0,8.939e-05,2]
[421296444,1777386633697,-500.0,8.939e-05,2]
[421296445,1777386633707,-500.0,8.939e-05,2]
[421296446,1777386633716,-500.0,8.939e-05,2]
[421296447,1777386633725,-500.0,8.939e-05,2]
[421296448,1777386633735,-239.5322191,8.939e-05,2]
[421296449,1777386633745,-500.0,8.939e-05,2]
[421296450,1777386633754,-500.0,8.939e-05,2]
[421296451,1777386633764,-500.0,8.939e-05,2]
[421296452,1777386633773,-500.0,8.939e-05,2]
[421296453,1777386633783,-500.0,8.939e-05,2]
[421296454,1777386633793,-500.0,8.939e-05,2]
[421296455,1777386633804,-500.0,8.939e-05,2]
[421296456,1777386633814,-269.21809642,8.939e-05,2]
[421296457,1777386633823,-500.0,8.939e-05,2]
[421296458,1777386633833,-500.0,8.939e-05,2]
[421296459,1777386633842,-500.0,8.939e-05,2]
[421296460,1777386633851,-500.0,8.939e-05,2]
[421296461,1777386633861,-500.0,8.939e-05,2]
[421296462,1777386633870,-500.0,8.939e-05,2]
[421296463,1777386633879,-500.0,8.939e-05,2]
[421296464,1777386633889,-500.0,8.939e-05,2]
[421296465,1777386633899,-500.0,8.939e-05,2]
[421296466,1777386633908,-500.0,8.939e-05,2]
[421296467,1777386633918,-500.0,8.939e-05,2]
[421296468,1777386633928,-500.0,8.939e-05,2]
[421296469,1777386633938,-500.0,8.939e-05,2]
[421296470,1777386633948,-500.0,8.939e-05,2]
[421296471,1777386633958,-617610.118,8.94e-05,2]
[421296472,1777386633968,-826.19,8.952e-05,2]
[421296473,1777386633977,-500.0,8.952e-05,2]
[421296474,1777386633986,-151.0,8.993e-05,2]
[421296475,1777386633995,-277.12766623,9e-05,2]
[421296476,1777386634004,-250.0,9e-05,2]
[421296477,1777386634014,-21856.92598608,9.04e-05,2]
[421296478,1777386634024,-250.0,9.041e-05,2]
[421296479,1777386634033,-5000.0,9.041e-05,2]
[421296480,1777386634043,-250.0,9.041e-05,2]
[421296481,1777386634053,-5000.0,9.041e-05,2]
[421296482,1777386634062,-384.22620767,9.041e-05,2]
[421296483,1777386634072,-193.0,9.041e-05,2]
[421296484,1777386634081,-529.9,9.044e-05,2]
[421296485,1777386634094,-151.0,9.048e-05,2]
[421296486,1777386634103,-2106.0,9.067e-05,5]
[421296487,1777386634112,-2228.0,9.067e-05,5]
[421296488,1777386634122,-151.0,9.067e-05,2]
[421296489,1777386634131,-151.0,9.067e-05,2]
[421296490,1777386634141,-151.0,9.067e-05,2]
[421296491,1777386634151,-151.0,9.067e-05,2]
[421296492,1777386634161,-151.0,9.067e-05,2]
[421296493,1777386634171,-151.0,9.067e-05,2]
[421296494,1777386634181,-151.0,9.067e-05,2]
[421296495,1777386634191,-151.0,9.067e-05,2]
[421296496,1777386634201,-151.0,9.067e-05,2]
[421296497,1777386634211,-151.0,9.067e-05,2]
[421296498,1777386634221,-151.0,9.067e-05,2]
[421296499,1777386634230,-223.023068,9.067e-05,2]
[421296500,1777386634239,-223.023068,9.067e-05,2]
[421296501,1777386634249,-223.023068,9.067e-05,2]
[421296502,1777386634258,-223.023068,9.067e-05,2]
[421296503,1777386634267,-801.958525,9.067e-05,2]
[421296504,1777386634277,-801.958525,9.067e-05,2]
[421296505,1777386634287,-801.958525,9.067e-05,2]
[421296506,1777386634296,-801.958525,9.067e-05,2]
[421296507,1777386634305,-1215.985178,9.067e-05,2]
[421296508,1777386634315,-1215.985178,9.067e-05,2]
[421296509,1777386634324,-1215.985178,9.067e-05,2]
[421296510,1777386634334,-1215.985178,9.067e-05,2]
[421296511,1777386634343,-54189.25020885,9.067e-05,2]
[421296512,1777386638024,-300.0,8.537e-05,2]
[421296513,1777386638034,-500.0,8.939e-05,2]
[421296514,1777386638044,-500.0,8.939e-05,2]
[421296515,1777386638053,-643.05713526,8.939e-05,2]
[421296516,1777386638063,-371.79529813,9.067e-05,2]
[421296517,1777386638075,-1132.68254729,9.067e-05,2]
[421296518,1777386638086,-842.77482899,9.067e-05,2]
[421296519,1777386638134,-101698.00301674,9.067e-05,2]
[421296520,1777386638144,-151.0,9.103e-05,2]
[421296521,1777386638154,-151.0,9.158e-05,2]
[421296522,1777386638164,-151.0,9.164e-05,2]
[421296523,1777386638173,-151.0,9.164e-05,2]
[421296524,1777386638183,-2181.5648271,9.167e-05,2]
[421296525,1777386638193,-41341.4424083,9.167e-05,2]
[421296526,1777386638202,-151.0,9.167e-05,2]
[421296527,1777386638212,-151.0,9.167e-05,2]
[421296528,1777386638222,-151.0,9.167e-05,2]
[421296529,1777386638233,-151.0,9.167e-05,2]
[421296530,1777386638243,-151.0,9.167e-05,2]
[421296531,1777386638253,-151.0,9.167e-05,2]
[421296532,1777386638262,-151.0,9.167e-05,2]
[421296533,1777386638271,-151.0,9.167e-05,2]
[421296534,1777386638281,-151.0,9.167e-05,2]
[421296535,1777386638290,-151.0,9.167e-05,2]
[421296536,1777386638300,-151.0,9.167e-05,2]
[421296537,1777386638309,-151.0,9.213e-05,2]
[421296538,1777386638318,-826.19,9.226e-05,2]
[421296539,1777386638327,-500.0,9.26e-05,2]
[421296540,1777386638336,-151.0,9.268e-05,2]
[421296541,1777386638346,-33093.9311,9.295e-05,2]
[421296542,1777386638355,-150.0,9.296e-05,2]
[421296543,1777386638365,-150.20331427,9.296e-05,2]
[421296544,1777386638374,-150.0,9.296e-05,2]
[421296545,1777386638383,-150.0,9.296e-05,2]
[421296546,1777386638393,-150.0,9.296e-05,2]
[421296547,1777386638402,-150.0,9.296e-05,2]
[421296548,1777386638411,-150.0,9.296e-05,2]
[421296549,1777386638420,-150.0,9.296e-05,2]
[421296550,1777386638430,-150.0,9.296e-05,2]
[421296551,1777386638440,-150.0,9.296e-05,2]
[421296552,1777386638449,-150.0,9.296e-05,2]
[421296553,1777386638458,-300.0,9.3e-05,3]
[421296554,1777386638469,-151.0,9.323e-05,2]
[421296555,1777386638478,-150.0,9.353e-05,2]
[421296556,1777386638487,-150.0,9.37e-05,2]
[421296557,1777386638496,-150.0,9.37e-05,2]
[421296558,1777386638505,-156.587,9.376e-05,2]
[421296559,1777386638514,-217.15233878,9.376e-05,2]
[421296560,1777386638524,-771.01748645,9.376e-05,2]
[421296561,1777386638533,-200.0,9.376e-05,2]
[421296562,1777386638542,-1481.23780761,9.376e-05,2]
[421296563,1777386638551,-290.26104003,9.376e-05,2]
[421296564,1777386638560,-181.08010149,9.376e-05,2]
[421296565,1777386638570,-344.62381202,9.376e-05,2]
[421296567,1777386638579,-151.0,9.378e-05,2]
[421296569,1777386638587,-420.0,9.392e-05,2]
[421296571,1777386638596,-1680.0,9.392e-05,2]
[421296572,1777386638606,-255.0,9.392e-05,2]
[421296573,1777386638616,-2159.0,9.394e-05,5]
[421296574,1777386638626,-150.0,9.411e-05,2]
[421296576,1777386638634,-150.0,9.411e-05,2]
[421296577,1777386638643,-150.0,9.425e-05,2]
[421296579,1777386638652,-150.0,9.443e-05,2]
[421296581,1777386638661,-150.0,9.443e-05,2]
[421296583,1777386638670,-223.023068,9.468e-05,2]
[421296584,1777386638679,-223.023068,9.468e-05,2]
[421296585,1777386638688,-223.023068,9.468e-05,2]
[421296586,1777386638697,-223.023068,9.468e-05,2]
[421296587,1777386638706,-801.958525,9.468e-05,2]
[421296588,1777386638716,-801.958525,9.468e-05,2]
[421296589,1777386638724,-801.958525,9.468e-05,2]
[421296590,1777386638734,-801.958525,9.468e-05,2]
[421296591,1777386638742,-1215.985178,9.468e-05,2]
[421296592,1777386638751,-1215.985178,9.468e-05,2]
[421296593,1777386638761,-1215.985178,9.468e-05,2]
[421296594,1777386638770,-1215.985178,9.468e-05,2]
[421296595,1777386638779,-150.0,9.468e-05,2]
[421296596,1777386638788,-150.0,9.468e-05,2]
[421296597,1777386638797,-25954.61876757,9.474e-05,2]
[421296598,1777386638806,-380.68394909,9.5e-05,4]
[421296599,1777386638815,-826.19,9.5e-05,2]
[421296600,1777386638824,-150.0,9.517e-05,2]
[421296601,1777386638833,-150.0,9.517e-05,2]
[421296602,1777386638842,-150.0,9.525e-05,2]
[421296603,1777386638851,-150.0,9.525e-05,2]
[421296604,1777386638860,-150.0,9.554e-05,2]
[421296605,1777386638869,-150.0,9.554e-05,2]
[421296606,1777386638878,-150.0,9.583e-05,2]